fUSD/lending_fUSD_20240722
["ID","MTS","AMOUNT","RATE_DAILY","PERIOD"]
[332880396,1721621438098,-2200.0,0.000112,4]
[332880397,1721621438107,-681.72879203,0.000113,4]
[332880398,1721621438119,-2018.27120797,0.000113,4]
[332880399,1721621438129,-500.0,0.000114,4]
[332880400,1721621438140,-500.0,0.000115,4]
[332880401,1721621438150,-200.0,0.00011504,2]
[332880402,1721621438160,-194.31,0.00011597,2]
[332880403,1721621438170,-1077.194,0.00011597,2]
[332880404,1721621438180,-500.0,0.000116,4]
[332880405,1721621438190,-188.02784338,0.0001163,2]
[332880406,1721621438202,-150.0,0.00011638,2]
[332880407,1721621438215,-500.0,0.000117,4]
[332880408,1721621438225,-172.29385908,0.00011717,2]
[332880409,1721621438236,-150.0,0.00011726,2]
[332880410,1721621438246,-150.0,0.00011771,2]
[332880411,1721621438257,-2013.87676,0.0001178,2]
[332880412,1721621438267,-1000.0,0.0001178,2]
[332880413,1721621438277,-1000.0,0.0001178,2]
[332880415,1721621438286,-1000.0,0.0001178,2]
[332880417,1721621438296,-1009.0,0.0001178,2]
[332880419,1721621438306,-1000.0,0.0001178,2]
[332880421,1721621438315,-1000.0,0.0001178,2]
[332880423,1721621438324,-1000.0,0.0001178,2]
[332880425,1721621438334,-1000.0,0.0001178,2]
[332880427,1721621438344,-1000.0,0.0001178,2]
[332880429,1721621438353,-14602.22752957,0.00011782,2]
[332880431,1721621438365,-3819.61907043,0.00011782,2]
[332880433,1721621438375,-9745.38092957,0.00011782,2]
[332880435,1721621438386,-4929.92907043,0.00011782,2]
[332880437,1721621438395,-10000.0,0.000118,2]
[332880439,1721621438404,-9598.97127957,0.000118,2]
[332880441,1721621438416,-54170.55,0.000118,2]
[332880443,1721621438428,-9553.154996,0.000118,2]
[332880445,1721621438439,-9084.2900005,0.000118,2]
[332880448,1721621438454,-13724.235,0.000118,2]
[332880450,1721621438466,-1384.75,0.000118,2]
[332880452,1721621438478,-5886.2514963,0.000118,2]
[332880454,1721621438489,-6998.74792347,0.000118,2]
[332880456,1721621438501,-9284.18896675,0.000118,2]
[332880598,1721621439894,-1472.98843199,0.000118,2]
[332880609,1721621440000,-1584.615,0.000118,2]
[332880931,1721621443183,-33506.34858893,0.000118,2]
[332881197,1721621445902,-2896.5521411,0.000118,2]
[332881330,1721621447166,-224182.28361849,0.000118,2]
[332881332,1721621447177,-1087.8496176,0.000118,2]
[332881335,1721621447196,-1087.15276736,0.000118,2]
[332881337,1721621447208,-75763.62811843,0.000118,2]
[332881385,1721621460009,500.0,0.00025,110]
[332881386,1721621461302,562.55,0.00024,60]
[332881387,1721621662370,252.03,8.959e-05,2]
[332881388,1721621702825,-1450.0,0.00013,30]
[332881389,1721621820616,-70000.0,0.00013,30]
[332881390,1721621964976,720.706933,0.00024,60]
[332881391,1721622007812,-367.0,0.0001187,30]
[332881392,1721622007835,-3018.0,0.0001187,30]
[332881393,1721622007857,-150.5,0.0001187,30]
[332881394,1721622007879,-367.0,0.0001187,30]
[332881395,1721622007900,-282.05,0.0001187,30]
[332881396,1721622007924,-3018.0,0.0001187,30]
[332881397,1721622007946,-367.0,0.0001188,30]
[332881398,1721622007969,-3018.0,0.0001188,30]
[332881399,1721622007989,-150.5,0.0001188,30]
[332881400,1721622008010,-227.17,0.0001188,30]
[332881401,1721622008031,-367.0,0.0001188,30]
[332881402,1721622008052,-150.5,0.0001188,30]
[332881403,1721622008079,-3018.0,0.0001188,30]
[332881404,1721622008101,-367.0,0.0001188,30]
[332881405,1721622008123,-3018.0,0.0001188,30]
[332881406,1721622008146,-376.04,0.0001188,30]
[332881407,1721622008168,-3023.42,0.0001188,30]
[332881408,1721622008189,-163.67,0.0001189,30]
[332881409,1721622008209,-367.0,0.0001189,30]
[332881410,1721622008230,-150.5,0.0001189,30]
[332881411,1721622008251,-150.5,0.0001189,30]
[332881412,1721622008274,-3018.0,0.0001189,30]
[332881413,1721622008295,-270.27,0.0001189,30]
[332881414,1721622008315,-156.59,0.0001189,30]
[332881415,1721622008337,-367.0,0.0001189,30]
[332881416,1721622008358,-150.5,0.0001189,30]
[332881417,1721622008381,-3018.0,0.0001189,30]
[332881418,1721622008402,-367.0,0.0001189,30]
[332881419,1721622008425,-3018.0,0.0001189,30]
[332881420,1721622008446,-367.0,0.0001189,30]
[332881421,1721622008468,-3018.0,0.0001189,30]
[332881422,1721622008503,-707132.79,0.00013,30]
[332881423,1721622024893,266.9950105,0.00024,60]
[332881424,1721622029625,367.0,0.00024,60]
[332881425,1721622121490,2000.0,0.00024,60]
[332881426,1721622218843,370.58,8.576e-05,2]
[332881428,1721622287975,236026.9749302,8.576e-05,2]
[332881429,1721622291722,363.47419335,8.576e-05,2]
[332881431,1721622378765,363.47419335,8.576e-05,2]
[332881433,1721622469279,363.47419335,8.576e-05,2]
[332881434,1721622475129,257.32358175,0.00023,120]
[332881435,1721622478365,152.97500535,0.00025,120]
[332881440,1721622519264,150.0,9e-05,2]
[332881446,1721622555061,1398.6,0.00025,110]
[332881447,1721622609988,363.47419335,9e-05,2]
[332881466,1721622634598,-801.54057365,0.00010395,2]
[332881467,1721622634608,-200.0095545,0.00010395,2]
[332881468,1721622634619,-177.77567013,0.00010395,2]
[332881469,1721622634629,-158.18147346,0.00010395,2]
[332881470,1721622634637,-155.07632471,0.00010395,2]
[332881471,1721622634645,-516.04240444,0.00010395,2]
[332881472,1721622634701,-13.3135142,0.00010395,2]
[332881473,1721622634711,-436.6864858,0.00010395,2]
[332881474,1721622634722,-96.43984858,0.00010395,2]
[332881475,1721622634732,-2881.19249061,0.00010395,2]
[332881476,1721622634744,-9743.5273487,0.00010395,2]
[332881477,1721622634755,-1009.34185827,0.00010395,2]
[332881478,1721622634766,-422.57359696,0.00010395,2]
[332881479,1721622634803,-791.24822385,0.00010395,2]
[332881480,1721622634834,-1017.04312744,0.00010395,2]
[332881481,1721622634853,-1660.29818461,0.00010395,2]
[332881482,1721622634864,-152611.84242901,0.00010395,2]
[332881483,1721622634874,-329.37,0.00010422,2]
[332881484,1721622634883,-200.0,0.00010448,2]
[332881485,1721622634893,-1000.0,0.00010451,2]
[332881486,1721622634902,-224.16,0.00010451,2]
[332881487,1721622634912,-250.0,0.00010457,2]
[332881488,1721622634921,-250.0,0.00010478,2]
[332881489,1721622634930,-699.81,0.00010559,2]
[332881490,1721622634940,-259.73,0.00010837,2]
[332881491,1721622634949,-499.99,0.00010837,2]
[332881492,1721622634958,-370.58,0.0001084,2]
[332881493,1721622634968,-259.73,0.0001084,2]
[332881494,1721622634977,-259.73,0.00010843,2]
[332881495,1721622634986,-259.73,0.00010846,2]
[332881496,1721622634996,-259.73,0.00010849,2]
[332881497,1721622635005,-259.73,0.00010851,2]
[332881498,1721622635014,-259.73,0.00010854,2]
[332881499,1721622635023,-259.73,0.00010857,2]
[332881500,1721622635032,-259.73,0.0001086,2]
[332881501,1721622635041,-259.73,0.00010863,2]
[332881502,1721622635050,-259.73,0.00010866,2]
[332881503,1721622635059,-259.73,0.00010869,2]
[332881504,1721622635068,-259.73,0.00010871,2]
[332881505,1721622635078,-259.73,0.00010874,2]
[332881506,1721622635087,-259.73,0.00010877,2]
[332881507,1721622635096,-259.73,0.0001088,2]
[332881508,1721622635105,-259.73,0.00010883,2]
[332881509,1721622635114,-259.73,0.00010886,2]
[332881510,1721622635123,-259.73,0.00010888,2]
[332881511,1721622635132,-259.73,0.00010891,2]
[332881512,1721622635141,-1256.56101945,0.00010909,2]
[332881513,1721622635151,-949.45530727,0.00010909,2]
[332881514,1721622635160,-29717.9276,0.00011,2]
[332881515,1721622635169,-501.0,0.00011,2]
[332881516,1721622635178,-420.11,0.00011,2]
[332881517,1721622635188,-420.11,0.00011,2]
[332881518,1721622635197,-420.11,0.00011,2]
[332881519,1721622635206,-420.11,0.00011,2]
[332881520,1721622635215,-833.54,0.00011041,2]
[332881521,1721622635224,-420.11,0.00011041,2]
[332881522,1721622635233,-833.54,0.00011041,2]
[332881523,1721622635242,-833.54,0.00011041,2]
[332881524,1721622635252,-833.54,0.00011041,2]
[332881525,1721622635261,-833.54,0.00011041,2]
[332881526,1721622635273,-243.29,0.00011068,2]
[332881527,1721622635283,-150.56,0.00011068,2]
[332881528,1721622635292,-151.06,0.00011068,2]
[332881529,1721622635301,-332.14,0.00011068,2]
[332881530,1721622635310,-150.0,0.00011068,2]
[332881531,1721622635321,-355.75,0.00011068,2]
[332881532,1721622635330,-1030.1,0.00011068,2]
[332881533,1721622635340,-303.86,0.00011068,2]
[332881534,1721622635350,-425.44,0.00011068,2]
[332881535,1721622635360,-420.11,0.000111,2]
[332881536,1721622635369,-833.54,0.000111,2]
[332881537,1721622635379,-155.60944453,0.00011105,2]
[332881538,1721622635388,-218.62689075,0.00011161,2]
[332881539,1721622635397,-4420.50641199,0.00011176,2]
[332881540,1721622635410,-150.0,0.00011178,2]
[332881541,1721622635419,-25291.99505056,0.00011186,2]
[332881542,1721622635428,-150.0,0.000112,2]
[332881543,1721622635439,-420.11,0.000112,2]
[332881544,1721622635448,-544.48,0.000112,2]
[332881545,1721622635457,-425.44,0.000112,2]
[332881546,1721622635466,-150.0,0.000112,2]
[332881547,1721622635475,-164.2,0.000112,2]
[332881548,1721622635485,-150.88,0.000112,2]
[332881549,1721622635495,-833.54,0.000112,2]
[332881550,1721622635505,-279.37,0.000112,2]
[332881551,1721622635514,-420.11,0.000112,2]
[332881552,1721622635523,-150.0,0.000112,2]
[332881553,1721622635532,-425.44,0.000112,2]
[332881554,1721622635541,-150.0,0.000112,2]
[332881555,1721622635551,-833.54,0.000112,2]
[332881556,1721622635560,-150.0,0.000112,2]
[332881557,1721622635570,-150.0,0.000112,2]
[332881558,1721622635579,-423.06,0.000112,2]
[332881559,1721622635588,-702.5,0.000112,2]
[332881560,1721622635598,-150.0,0.000112,2]
[332881561,1721622635607,-833.54,0.000112,2]
[332881562,1721622635616,-150.0,0.000112,2]
[332881563,1721622635626,-420.11,0.000112,2]
[332881564,1721622635635,-10000.0,0.000113,2]
[332881565,1721622635645,-184.10586,0.00011384,2]
[332881566,1721622635657,-183.044589,0.00011384,2]
[332881567,1721622635666,-153.1,0.00011452,2]
[332881568,1721622635675,-998.98344209,0.00011543,2]
[332881569,1721622635684,-1433.7035,0.00011563,2]
[332881570,1721622635693,-5138.359,0.000116,2]
[332881571,1721622635701,-38351.0,0.000116,2]
[332881572,1721622635710,-150.0,0.00011625,2]
[332881573,1721622635719,-150.0,0.00011625,2]
[332881574,1721622635728,-1500.0,0.00011626,2]
[332881575,1721622635738,-1500.0,0.00011626,2]
[332881576,1721622635747,-150.0,0.00011627,2]
[332881577,1721622635756,-150.0,0.00011628,2]
[332881578,1721622635765,-1500.0,0.00011632,2]
[332881579,1721622635774,-150.0,0.00011634,2]
[332881580,1721622635783,-150.0,0.00011634,2]
[332881581,1721622635792,-1500.0,0.00011638,2]
[332881582,1721622635801,-150.0,0.00011638,2]
[332881583,1721622635810,-150.0,0.00011638,2]
[332881584,1721622635819,-1500.0,0.00011642,2]
[332881585,1721622635828,-150.0,0.00011643,2]
[332881586,1721622635837,-150.0,0.00011644,2]
[332881587,1721622635846,-1500.0,0.00011644,2]
[332881588,1721622635856,-1500.0,0.00011644,2]
[332881589,1721622635865,-150.0,0.00011645,2]
[332881590,1721622635874,-1500.0,0.00011645,2]
[332881591,1721622635883,-150.0,0.00011645,2]
[332881592,1721622635892,-150.0,0.00011647,2]
[332881593,1721622635901,-150.0,0.00011649,2]
[332881594,1721622635910,-150.0,0.00011649,2]
[332881595,1721622635919,-1627.27981938,0.0001165,2]
[332881596,1721622635929,-300.0,0.00011651,2]
[332881597,1721622635938,-150.0,0.00011655,2]
[332881598,1721622635947,-150.0,0.00011657,2]
[332881599,1721622635956,-150.0,0.00011657,2]
[332881600,1721622635965,-150.0,0.00011657,2]
[332881601,1721622635974,-150.0,0.00011658,2]
[332881602,1721622635983,-150.0,0.00011659,2]
[332881603,1721622635992,-150.0,0.0001166,2]
[332881604,1721622636001,-150.0,0.00011661,2]
[332881605,1721622636010,-1500.0,0.00011662,2]
[332881606,1721622636019,-150.0,0.00011662,2]
[332881607,1721622636028,-1500.0,0.00011664,2]
[332881608,1721622636037,-150.0,0.00011664,2]
[332881609,1721622636045,-150.0,0.00011665,2]
[332881610,1721622636054,-150.0,0.00011665,2]
[332881611,1721622636064,-150.0,0.00011666,2]
[332881612,1721622636073,-150.0,0.00011666,2]
[332881613,1721622636082,-150.0,0.00011667,2]
[332881614,1721622636091,-183.044589,0.00011669,2]
[332881615,1721622636100,-150.0,0.00011669,2]
[332881616,1721622636110,-150.0,0.0001167,2]
[332881617,1721622636119,-150.0,0.00011671,2]
[332881618,1721622636128,-150.0,0.00011673,2]
[332881619,1721622636137,-1500.0,0.00011676,2]
[332881620,1721622636146,-1500.0,0.00011677,2]
[332881621,1721622636156,-150.0,0.00011678,2]
[332881622,1721622636166,-1500.0,0.00011678,2]
[332881623,1721622636175,-150.0,0.00011679,2]
[332881624,1721622636184,-500.0,0.0001168,2]
[332881625,1721622636193,-150.0,0.00011681,2]
[332881626,1721622636202,-150.0,0.00011686,2]
[332881627,1721622636211,-150.0,0.00011686,2]
[332881628,1721622636219,-150.0,0.00011687,2]
[332881629,1721622636228,-150.0,0.00011688,2]
[332881630,1721622636237,-1500.0,0.00011689,2]
[332881631,1721622636246,-150.0,0.0001169,2]
[332881632,1721622636255,-1500.0,0.0001169,2]
[332881633,1721622636264,-1500.0,0.00011695,2]
[332881634,1721622636277,-1500.0,0.00011696,2]
[332881635,1721622636286,-153.05898662,0.00011697,2]
[332881636,1721622636295,-1500.0,0.00011698,2]
[332881637,1721622636304,-1500.0,0.00011699,2]
[332881638,1721622636314,-600.795,0.000117,2]
[332881639,1721622636323,-1000.0,0.000117,2]
[332881640,1721622636332,-11494.3431,0.000117,2]
[332881641,1721622636342,-8229.3478,0.000117,2]
[332881642,1721622636352,-310.4515,0.000117,2]
[332881643,1721622636362,-1000.0,0.000117,2]
[332881644,1721622636371,-1000.0,0.000117,2]
[332881645,1721622636380,-1046.0,0.000117,2]
[332881646,1721622636389,-300.0,0.00011701,2]
[332881647,1721622636399,-1500.0,0.00011702,2]
[332881648,1721622636408,-150.0,0.00011703,2]
[332881649,1721622636417,-500.0,0.00011706,2]
[332881650,1721622636427,-300.0,0.00011706,2]
[332881651,1721622636436,-1500.0,0.00011706,2]
[332881652,1721622636445,-300.0,0.00011706,2]
[332881653,1721622636455,-150.0,0.00011707,2]
[332881654,1721622636464,-1500.0,0.00011707,2]
[332881655,1721622636473,-1500.0,0.00011709,2]
[332881656,1721622636483,-150.0,0.00011709,2]
[332881657,1721622636492,-150.0,0.0001171,2]
[332881658,1721622636501,-150.0,0.00011714,2]
[332881659,1721622636511,-1500.0,0.00011714,2]
[332881660,1721622636520,-1500.0,0.00011715,2]
[332881661,1721622636530,-150.0,0.00011715,2]
[332881662,1721622636539,-150.0,0.00011717,2]
[332881663,1721622636549,-150.0,0.00011719,2]
[332881664,1721622636558,-300.0,0.00011721,2]
[332881665,1721622636568,-1500.0,0.00011722,2]
[332881666,1721622636577,-150.0,0.00011722,2]
[332881667,1721622636586,-1500.0,0.00011723,2]
[332881668,1721622636595,-1500.0,0.00011723,2]
[332881669,1721622636604,-150.0,0.00011723,2]
[332881670,1721622636614,-150.0,0.00011724,2]
[332881671,1721622636623,-300.38801248,0.00011725,2]
[332881672,1721622636632,-150.0,0.00011725,2]
[332881673,1721622636641,-150.0,0.00011725,2]
[332881674,1721622636651,-1500.0,0.00011726,2]
[332881675,1721622636661,-153.05898662,0.00011731,2]
[332881676,1721622636670,-150.0,0.00011733,2]
[332881677,1721622636680,-150.0,0.00011735,2]
[332881678,1721622636689,-150.0,0.00011736,2]
[332881679,1721622636698,-150.0,0.00011737,2]
[332881680,1721622636707,-1500.0,0.00011738,2]
[332881681,1721622636716,-300.0,0.0001174,2]
[332881682,1721622636725,-1500.0,0.0001174,2]
[332881683,1721622636734,-150.0,0.00011741,2]
[332881684,1721622636743,-150.0,0.00011741,2]
[332881685,1721622636753,-150.0,0.00011741,2]
[332881686,1721622636762,-1500.0,0.00011743,2]
[332881687,1721622636771,-150.0,0.00011743,2]
[332881688,1721622636780,-150.0,0.00011745,2]
[332881689,1721622636789,-150.0,0.00011747,2]
[332881690,1721622636798,-150.0,0.00011749,2]
[332881691,1721622636807,-150.0,0.00011753,2]
[332881692,1721622636816,-150.0,0.00011753,2]
[332881693,1721622636825,-1500.0,0.00011755,2]
[332881694,1721622636834,-150.0,0.00011757,2]
[332881695,1721622636843,-1000.0,0.00011758,2]
[332881696,1721622636852,-224.16,0.00011758,2]
[332881697,1721622636862,-150.0,0.00011758,2]
[332881698,1721622636871,-150.0,0.00011759,2]
[332881699,1721622636880,-150.0,0.00011762,2]
[332881700,1721622636889,-150.0,0.00011763,2]
[332881701,1721622636899,-153.05898662,0.00011766,2]
[332881702,1721622636910,-150.0,0.00011768,2]
[332881703,1721622636919,-1500.0,0.00011769,2]
[332881704,1721622636928,-1003.0,0.0001177,2]
[332881705,1721622636937,-1000.0,0.0001177,2]
[332881706,1721622636947,-150.0,0.00011771,2]
[332881707,1721622636956,-1500.0,0.00011771,2]
[332881708,1721622637255,-1500.0,0.00011771,2]
[332881709,1721622637328,-300.0,0.00011774,2]
[332881710,1721622637337,-301.59788598,0.00011775,2]
[332881711,1721622637348,-150.0,0.00011775,2]
[332881712,1721622637357,-150.0,0.00011776,2]
[332881713,1721622637366,-150.0,0.00011776,2]
[332881714,1721622637376,-150.0,0.00011776,2]
[332881715,1721622637385,-150.0,0.00011777,2]
[332881716,1721622637394,-1500.0,0.00011778,2]
[332881717,1721622637406,-282.90547435,0.0001178,2]
[332881718,1721622637415,-49868.0,0.00011781,2]
[332881719,1721622637424,-150.0,0.00011782,2]
[332881720,1721622637434,-150.0,0.00011785,2]
[332881721,1721622637443,-1500.0,0.00011786,2]
[332881722,1721622637452,-150.0,0.00011787,2]
[332881723,1721622637462,-300.0,0.00011788,2]
[332881724,1721622637471,-150.0,0.0001179,2]
[332881725,1721622637481,-1500.0,0.0001179,2]
[332881726,1721622637490,-150.0,0.00011794,2]
[332881727,1721622637499,-150.0,0.00011795,2]
[332881728,1721622637509,-1500.0,0.00011796,2]
[332881729,1721622637518,-3631.19182575,0.00011799,2]
[332881730,1721622637527,-83463.60443716,0.000118,2]
[332881731,1721622637542,-31342.83761635,0.000118,2]
[332881732,1721622637552,-10000.0,0.000118,2]
[332881733,1721622637561,-175.79910064,0.000118,2]
[332881734,1721622637571,-177.35582664,0.000118,2]
[332881735,1721622637580,-174.17818266,0.000118,2]
[332881736,1721622637590,-12799.56052812,0.000118,2]
[332881737,1721622637599,-153.05898662,0.000118,2]
[332881738,1721622637608,-1224.0,0.000118,2]
[332881739,1721622637618,-2868.02231288,0.000118,2]
[332881740,1721622637627,-150.0,0.00011804,2]
[332881741,1721622637637,-150.0,0.00011809,2]
[332881742,1721622637646,-150.0,0.00011809,2]
[332881743,1721622637656,-1500.0,0.0001181,2]
[332881744,1721622637666,-150.0,0.00011812,2]
[332881745,1721622637675,-1215.47328166,0.00011813,2]
[332881746,1721622637684,-150.0,0.00011814,2]
[332881747,1721622637694,-150.0,0.00011816,2]
[332881748,1721622637703,-150.0,0.00011816,2]
[332881749,1721622637713,-1500.0,0.00011819,2]
[332881750,1721622637723,-150.0,0.00011825,2]
[332881751,1721622637732,-150.0,0.00011825,2]
[332881752,1721622637742,-150.0,0.00011827,2]
[332881753,1721622637751,-189.12812472,0.00011829,2]
[332881754,1721622637761,-1500.0,0.0001183,2]
[332881755,1721622637771,-150.0,0.00011831,2]
[332881756,1721622637780,-1500.0,0.00011831,2]
[332881757,1721622637790,-150.0,0.00011835,2]
[332881759,1721622637799,-150.0,0.00011835,2]
[332881760,1721622637809,-150.0,0.00011837,2]
[332881761,1721622637818,-1500.0,0.00011837,2]
[332881762,1721622637828,-1500.0,0.00011838,2]
[332881763,1721622637838,-1500.0,0.00011838,2]
[332881764,1721622637847,-150.0,0.00011839,2]
[332881765,1721622637857,-150.0,0.0001184,2]
[332881766,1721622637867,-300.0,0.00011841,2]
[332881767,1721622637876,-150.0,0.00011841,2]
[332881768,1721622637886,-150.0,0.00011842,2]
[332881769,1721622637895,-300.0,0.00011844,2]
[332881770,1721622637904,-150.0,0.00011844,2]
[332881771,1721622637913,-1500.0,0.00011845,2]
[332881772,1721622637923,-150.0,0.00011845,2]
[332881773,1721622637932,-150.0,0.00011845,2]
[332881774,1721622637941,-150.0,0.00011846,2]
[332881775,1721622637951,-1500.0,0.00011847,2]
[332881776,1721622637960,-152.29243002,0.00011851,2]
[332881777,1721622637969,-150.0,0.00011853,2]
[332881778,1721622637979,-1500.0,0.00011854,2]
[332881779,1721622637988,-150.0,0.00011854,2]
[332881780,1721622637998,-150.0,0.00011855,2]
[332881781,1721622638007,-1500.0,0.00011857,2]
[332881782,1721622638016,-150.0,0.00011858,2]
[332881783,1721622638025,-300.0,0.00011859,2]
[332881784,1721622638035,-1500.0,0.00011859,2]
[332881785,1721622638044,-150.0,0.0001186,2]
[332881786,1721622638053,-150.0,0.0001186,2]
[332881787,1721622638063,-150.0,0.00011861,2]
[332881788,1721622638072,-1500.0,0.00011861,2]
[332881789,1721622638081,-1500.0,0.00011861,2]
[332881790,1721622638091,-1500.0,0.00011863,2]
[332881791,1721622638100,-1500.0,0.00011863,2]
[332881792,1721622638110,-300.0,0.00011864,2]
[332881793,1721622638120,-150.0,0.00011865,2]
[332881794,1721622638129,-150.0,0.00011865,2]
[332881795,1721622638138,-300.0,0.00011867,2]
[332881796,1721622638148,-1500.0,0.00011868,2]
[332881797,1721622638158,-150.0,0.00011868,2]
[332881798,1721622638167,-300.40037977,0.00011868,2]
[332881799,1721622638177,-150.0,0.00011868,2]
[332881800,1721622638186,-150.5,0.0001187,30]
[332881801,1721622638196,-2618.0,0.0001187,30]
[332881802,1721622638205,-2618.0,0.0001187,30]
[332881803,1721622638215,-150.5,0.0001187,30]
[332881804,1721622638224,-243.0,0.0001187,30]
[332881805,1721622638233,-243.0,0.0001187,30]
[332881806,1721622638243,-160.0,0.0001187,30]
[332881807,1721622638253,-160.0,0.0001187,30]
[332881808,1721622638262,-150.5,0.0001187,30]
[332881809,1721622638275,-246.0,0.0001187,30]
[332881810,1721622638284,-150.5,0.0001187,30]
[332881811,1721622638293,-150.0,0.00011871,2]
[332881812,1721622638303,-302.6982118,0.00011871,2]
[332881813,1721622638312,-1500.0,0.00011871,2]
[332881814,1721622638322,-150.0,0.00011874,2]
[332881815,1721622638331,-1500.0,0.00011875,2]
[332881816,1721622638340,-1500.0,0.00011877,2]
[332881817,1721622638352,-1500.0,0.00011877,2]
[332881818,1721622638361,-150.5,0.0001188,30]
[332881819,1721622638370,-150.5,0.0001188,30]
[332881820,1721622638380,-256.76,0.0001188,30]
[332881821,1721622638390,-2618.0,0.0001188,30]
[332881822,1721622638399,-2618.0,0.0001188,30]
[332881823,1721622638409,-2618.0,0.0001188,30]
[332881824,1721622638418,-2626.87,0.0001188,30]
[332881825,1721622638427,-253.23,0.0001188,30]
[332881826,1721622638437,-160.0,0.0001188,30]
[332881827,1721622638446,-243.0,0.0001188,30]
[332881828,1721622638455,-243.0,0.0001188,30]
[332881829,1721622638464,-243.0,0.0001188,30]
[332881830,1721622638474,-252.5,0.0001188,30]
[332881831,1721622638483,-160.0,0.0001188,30]
[332881832,1721622638493,-160.0,0.0001188,30]
[332881833,1721622638502,-167.12,0.0001188,30]
[332881834,1721622638511,-150.5,0.0001188,30]
[332881835,1721622638520,-246.0,0.0001188,30]
[332881836,1721622638530,-150.5,0.0001188,30]
[332881837,1721622638539,-150.0,0.00011882,2]
[332881838,1721622638548,-150.86645017,0.00011883,2]
[332881839,1721622638558,-150.0,0.00011886,2]
[332881840,1721622638567,-1500.0,0.00011887,2]
[332881841,1721622638576,-150.0,0.00011888,2]
[332881842,1721622638586,-150.0,0.00011888,2]
[332881843,1721622638595,-150.0,0.00011889,2]
[332881844,1721622638604,-1500.0,0.00011889,2]
[332881845,1721622638613,-493.721,0.0001189,2]
[332881846,1721622638622,-604.83098751,0.0001189,2]
[332881847,1721622638634,-212.73501249,0.0001189,2]
[332881848,1721622638643,-227.07,0.0001189,2]
[332881849,1721622638653,-168.15317582,0.0001189,2]
[332881850,1721622638664,-287.89382418,0.0001189,2]
[332881851,1721622638673,-631.224,0.0001189,2]
[332881852,1721622638681,-1832.13528457,0.0001189,2]
[332881855,1721622640713,-352.625,0.00011294,2]
[332881856,1721622640772,-70.1300765,0.00011294,2]
[332881857,1721622640782,-1668.0,0.000116,2]
[332881858,1721622640791,-1210.818,0.000116,2]
[332881859,1721622640800,-150.0,0.00011623,2]
[332881860,1721622640809,-150.0,0.00011648,2]
[332881861,1721622640819,-150.0,0.00011684,2]
[332881862,1721622640828,-150.0,0.00011695,2]
[332881863,1721622640838,-150.0,0.00011712,2]
[332881864,1721622640847,-150.0,0.00011772,2]
[332881865,1721622640857,-10000.0,0.0001179,2]
[332881866,1721622640866,-150.0,0.00011792,2]
[332881867,1721622640875,-150.0,0.00011793,2]
[332881868,1721622640885,-150.0,0.00011847,2]
[332881869,1721622640894,-150.0,0.00011855,2]
[332881870,1721622640905,-150.0,0.00011863,2]